fUST/lending_fUST_20260514
["ID","MTS","AMOUNT","RATE_DAILY","PERIOD"]
[422208719,1778697045000,-500.0,0.00012054,2]
[422208707,1778697045000,-500.0,0.00012054,2]
[422208711,1778697045000,-572.11,0.00012054,2]
[422208715,1778697045000,-500.0,0.00012054,2]
[422208714,1778697045000,-881.91,0.00012054,2]
[422208709,1778697045000,-816.11,0.00012054,2]
[422208712,1778697045000,-500.0,0.00012054,2]
[422208713,1778697045000,-500.0,0.00012054,2]
[422208720,1778697045000,-500.0,0.00012054,2]
[422208723,1778697045000,-500.0,0.00012054,2]
[422208724,1778697045000,-550.5,0.00012054,2]
[422208727,1778697045000,-1395.13,0.00012054,2]
[422208728,1778697045000,-693.17,0.00012054,2]
[422208722,1778697045000,-749.73,0.00012054,2]
[422208721,1778697045000,-940.17,0.00012054,2]
[422208730,1778697045000,-2000.08,0.00012054,2]
[422208732,1778697045000,-500.0,0.00012054,2]
[422208654,1778697045000,-838.87,0.0001178,2]
[422208704,1778697045000,-500.0,0.00012054,2]
[422208702,1778697045000,-500.0,0.00012054,2]
[422208710,1778697045000,-500.0,0.00012054,2]
[422208692,1778697045000,-500.0,0.00012054,2]
[422208699,1778697045000,-562.04,0.00012054,2]
[422208670,1778697045000,-1253.67,0.0001178,2]
[422208673,1778697045000,-500.0,0.0001178,2]
[422208671,1778697045000,-1165.12,0.0001178,2]
[422208672,1778697045000,-1979.83,0.0001178,2]
[422208678,1778697045000,-500.0,0.0001178,2]
[422208677,1778697045000,-1209.53,0.0001178,2]
[422208676,1778697045000,-1027.1,0.0001178,2]
[422208674,1778697045000,-956.47,0.0001178,2]
[422208675,1778697045000,-500.0,0.0001178,2]
[422208690,1778697045000,-500.0,0.00012054,2]
[422208680,1778697045000,-670.74,0.0001178,2]
[422208688,1778697045000,-500.0,0.00012054,2]
[422208681,1778697045000,-1229.37,0.0001178,2]
[422208667,1778697045000,-2552.96,0.0001178,2]
[422208700,1778697045000,-761.31,0.00012054,2]
[422208682,1778697045000,-2462.18,0.0001178,2]
[422208693,1778697045000,-500.0,0.00012054,2]
[422208698,1778697045000,-500.0,0.00012054,2]
[422208694,1778697045000,-207.99523003,0.00012054,2]
[422208689,1778697045000,-500.0,0.00012054,2]
[422208691,1778697045000,-500.0,0.00012054,2]
[422208684,1778697045000,-160.0,0.00011817,3]
[422208687,1778697045000,-500.0,0.00012054,2]
[422208686,1778697045000,-1194.0618,0.00012054,2]
[422208679,1778697045000,-955.12,0.0001178,2]
[422208685,1778697045000,-198.0,0.0001192,2]
[422208683,1778697045000,-1284.57,0.0001178,2]
[422208774,1778697046000,-670.74,0.00012054,2]
[422208778,1778697046000,-156.0,0.00012055,3]
[422208779,1778697046000,-151.0,0.00012096,2]
[422208773,1778697046000,-955.12,0.00012054,2]
[422208772,1778697046000,-500.0,0.00012054,2]
[422208775,1778697046000,-1229.37,0.00012054,2]
[422208771,1778697046000,-1209.53,0.00012054,2]
[422208769,1778697046000,-500.0,0.00012054,2]
[422208764,1778697046000,-1253.67,0.00012054,2]
[422208768,1778697046000,-956.47,0.00012054,2]
[422208777,1778697046000,-1284.57,0.00012054,2]
[422208766,1778697046000,-1979.83,0.00012054,2]
[422208770,1778697046000,-1027.1,0.00012054,2]
[422208786,1778697046000,-500.0,0.00012328,2]
[422208785,1778697046000,-500.0,0.00012328,2]
[422208787,1778697046000,-500.0,0.00012328,2]
[422208782,1778697046000,-191.40468866,0.0001225,2]
[422208781,1778697046000,-160.0,0.00012166,4]
[422208780,1778697046000,-400.0,0.000121,2]
[422208784,1778697046000,-1194.0618,0.00012328,2]
[422208783,1778697046000,-397.99831592,0.00012328,2]
[422208790,1778697046000,-500.0,0.00012328,2]
[422208800,1778697046000,-379.39469638,0.00012328,2]
[422208801,1778697046000,-500.0,0.00012328,2]
[422208791,1778697046000,-365.49950542,0.00012328,2]
[422208789,1778697046000,-500.0,0.00012328,2]
[422208794,1778697046000,-500.0,0.00012328,2]
[422208792,1778697046000,-500.0,0.00012328,2]
[422208788,1778697046000,-500.0,0.00012328,2]
[422208767,1778697046000,-500.0,0.00012054,2]
[422208736,1778697046000,-500.0,0.00012054,2]
[422208765,1778697046000,-1165.12,0.00012054,2]
[422208737,1778697046000,-531.39,0.00012054,2]
[422208734,1778697046000,-1049.6,0.00012054,2]
[422208738,1778697046000,-500.0,0.00012054,2]
[422208740,1778697046000,-755.81,0.00012054,2]
[422208739,1778697046000,-868.66,0.00012054,2]
[422208750,1778697046000,-838.87,0.00012054,2]
[422208742,1778697046000,-658.35,0.00012054,2]
[422208748,1778697046000,-1527.5,0.00012054,2]
[422208799,1778697046000,-500.0,0.00012328,2]
[422208745,1778697046000,-500.0,0.00012054,2]
[422208749,1778697046000,-766.24,0.00012054,2]
[422208744,1778697046000,-2402.74,0.00012054,2]
[422208741,1778697046000,-753.83,0.00012054,2]
[422208776,1778697046000,-2462.18,0.00012054,2]
[422208743,1778697046000,-909.77,0.00012054,2]
[422208762,1778697046000,-627.93,0.00012054,2]
[422208751,1778697046000,-1101.26,0.00012054,2]
[422208753,1778697046000,-626.42,0.00012054,2]
[422208752,1778697046000,-500.0,0.00012054,2]
[422208763,1778697046000,-761.17,0.00012054,2]
[422208754,1778697046000,-516.82,0.00012054,2]
[422208755,1778697046000,-1807.79,0.00012054,2]
[422208759,1778697046000,-878.02,0.00012054,2]
[422208760,1778697046000,-2552.96,0.00012054,2]
[422208758,1778697046000,-653.62,0.00012054,2]
[422208756,1778697046000,-13657.84,0.00012054,2]
[422208757,1778697046000,-500.0,0.00012054,2]
[422208761,1778697046000,-1002.78,0.00012054,2]
[422208747,1778697046000,-500.0,0.00012054,2]
[422208795,1778697046000,-500.0,0.00012328,2]
[422208746,1778697046000,-1735.03,0.00012054,2]
[422208796,1778697046000,-562.04,0.00012328,2]
[422208829,1778697046000,-868.66,0.00012328,2]
[422208839,1778697046000,-1527.5,0.00012328,2]
[422208834,1778697046000,-909.77,0.00012328,2]
[422208833,1778697046000,-658.35,0.00012328,2]
[422208837,1778697046000,-1735.03,0.00012328,2]
[422208836,1778697046000,-500.0,0.00012328,2]
[422208835,1778697046000,-2402.74,0.00012328,2]
[422208838,1778697046000,-500.0,0.00012328,2]
[422208852,1778697046000,-1002.78,0.00012328,2]
[422208842,1778697046000,-1101.26,0.00012328,2]
[422208841,1778697046000,-838.87,0.00012328,2]
[422208845,1778697046000,-516.82,0.00012328,2]
[422208843,1778697046000,-500.0,0.00012328,2]
[422208832,1778697046000,-1517.57878553,0.00012328,2]
[422208848,1778697046000,-500.0,0.00012328,2]
[422208849,1778697046000,-653.62,0.00012328,2]
[422208850,1778697046000,-878.02,0.00012328,2]
[422208844,1778697046000,-626.42,0.00012328,2]
[422208851,1778697046000,-2552.96,0.00012328,2]
[422208847,1778697046000,-13657.84,0.00012328,2]
[422208853,1778697046000,-225.34849908,0.00012328,2]
[422208855,1778697046000,-627.93,0.00012328,2]
[422208857,1778697046000,-761.17,0.00012328,2]
[422208858,1778697046000,-3605.57598526,0.00012328,2]
[422208856,1778697046000,-2028.13649171,0.00012328,2]
[422208854,1778697046000,-901.39399631,0.00012328,2]
[422208860,1778697046000,-1165.12,0.00012328,2]
[422208859,1778697046000,-1253.67,0.00012328,2]
[422208846,1778697046000,-1807.79,0.00012328,2]
[422208840,1778697046000,-766.24,0.00012328,2]
[422208793,1778697046000,-500.0,0.00012328,2]
[422208828,1778697046000,-500.0,0.00012328,2]
[422208798,1778697046000,-500.0,0.00012328,2]
[422208797,1778697046000,-761.31,0.00012328,2]
[422208802,1778697046000,-500.0,0.00012328,2]
[422208807,1778697046000,-572.11,0.00012328,2]
[422208813,1778697046000,-500.0,0.00012328,2]
[422208803,1778697046000,-500.0,0.00012328,2]
[422208804,1778697046000,-500.0,0.00012328,2]
[422208805,1778697046000,-816.11,0.00012328,2]
[422208806,1778697046000,-500.0,0.00012328,2]
[422208808,1778697046000,-500.0,0.00012328,2]
[422208814,1778697046000,-500.0,0.00012328,2]
[422208809,1778697046000,-500.0,0.00012328,2]
[422208811,1778697046000,-881.91,0.00012328,2]
[422208812,1778697046000,-500.0,0.00012328,2]
[422208830,1778697046000,-755.81,0.00012328,2]
[422208827,1778697046000,-531.39,0.00012328,2]
[422208831,1778697046000,-753.83,0.00012328,2]
[422208825,1778697046000,-1049.6,0.00012328,2]
[422208824,1778697046000,-500.0,0.00012328,2]
[422208819,1778697046000,-500.0,0.00012328,2]
[422208810,1778697046000,-1461.99802166,0.00012328,2]
[422208823,1778697046000,-2000.08,0.00012328,2]
[422208821,1778697046000,-1395.13,0.00012328,2]
[422208822,1778697046000,-693.17,0.00012328,2]
[422208817,1778697046000,-940.17,0.00012328,2]
[422208818,1778697046000,-749.73,0.00012328,2]
[422208815,1778697046000,-500.0,0.00012328,2]
[422208816,1778697046000,-500.0,0.00012328,2]
[422208826,1778697046000,-500.0,0.00012328,2]
[422208820,1778697046000,-550.5,0.00012328,2]
[422208906,1778697047000,-500.0,0.00012602,2]
[422208904,1778697047000,-562.04,0.00012602,2]
[422208902,1778697047000,-500.0,0.00012602,2]
[422208901,1778697047000,-500.0,0.00012602,2]
[422208896,1778697047000,-500.0,0.00012602,2]
[422208895,1778697047000,-500.0,0.00012602,2]
[422208898,1778697047000,-500.0,0.00012602,2]
[422208899,1778697047000,-500.0,0.00012602,2]
[422208903,1778697047000,-500.0,0.00012602,2]
[422208897,1778697047000,-500.0,0.00012602,2]
[422208894,1778697047000,-500.0,0.00012602,2]
[422208910,1778697047000,-500.0,0.00012602,2]
[422208900,1778697047000,-500.0,0.00012602,2]
[422208908,1778697047000,-500.0,0.00012602,2]
[422208914,1778697047000,-572.11,0.00012602,2]
[422208905,1778697047000,-761.31,0.00012602,2]
[422208909,1778697047000,-500.0,0.00012602,2]
[422208915,1778697047000,-500.0,0.00012602,2]
[422208916,1778697047000,-500.0,0.00012602,2]
[422208917,1778697047000,-881.91,0.00012602,2]
[422208911,1778697047000,-500.0,0.00012602,2]
[422208912,1778697047000,-816.11,0.00012602,2]
[422208913,1778697047000,-464.67684734,0.00012602,2]
[422208919,1778697047000,-500.0,0.00012602,2]
[422208930,1778697047000,-500.0,0.00012602,2]
[422208929,1778697047000,-2000.08,0.00012602,2]
[422208918,1778697047000,-500.0,0.00012602,2]
[422208892,1778697047000,-6878.25618798,0.00012602,2]
[422208907,1778697047000,-500.0,0.00012602,2]
[422208893,1778697047000,-1268.543,0.00012602,2]
[422208869,1778697047000,-670.74,0.00012328,2]
[422208886,1778697047000,-225.85,0.0001251,2]
[422208864,1778697047000,-500.0,0.00012328,2]
[422208862,1778697047000,-500.0,0.00012328,2]
[422208861,1778697047000,-1979.83,0.00012328,2]
[422208863,1778697047000,-956.47,0.00012328,2]
[422208867,1778697047000,-500.0,0.00012328,2]
[422208866,1778697047000,-1209.53,0.00012328,2]
[422208877,1778697047000,-2471.29,0.00012329,2]
[422208878,1778697047000,-217.85318853,0.00012352,21]
[422208868,1778697047000,-955.12,0.00012328,2]
[422208876,1778697047000,-2965.55,0.00012329,2]
[422208871,1778697047000,-2462.18,0.00012328,2]
[422208872,1778697047000,-1284.57,0.00012328,2]
[422208875,1778697047000,-3558.66,0.00012329,2]
[422208885,1778697047000,-17271.60085396,0.000125,2]
[422208874,1778697047000,-4270.39,0.00012329,2]
[422208920,1778697047000,-500.0,0.00012602,2]
[422208873,1778697047000,-5124.47,0.00012329,2]
[422208879,1778697047000,-200.0,0.000124,7]
[422208881,1778697047000,-171.1039,0.00012465,2]
[422208883,1778697047000,-152.0,0.00012483,7]
[422208882,1778697047000,-5633.71247697,0.00012481,2]
[422208888,1778697047000,-473.06789716,0.00012558,7]
[422208880,1778697047000,-3286.20605319,0.0001242,2]
[422208889,1778697047000,-181.69,0.000126,2]
[422208890,1778697047000,-153.86,0.000126,2]
[422208891,1778697047000,-720.0,0.00012601,2]
[422208887,1778697047000,-160.0,0.00012515,5]
[422208884,1778697047000,-152.0,0.00012483,7]
[422208870,1778697047000,-1229.37,0.00012328,2]
[422208927,1778697047000,-1395.13,0.00012602,2]
[422208865,1778697047000,-1027.1,0.00012328,2]
[422208924,1778697047000,-749.73,0.00012602,2]
[422208958,1778697047000,-627.93,0.00012602,2]
[422208956,1778697047000,-2552.96,0.00012602,2]
[422208959,1778697047000,-761.17,0.00012602,2]
[422208962,1778697047000,-1979.83,0.00012602,2]
[422208964,1778697047000,-956.47,0.00012602,2]
[422208963,1778697047000,-500.0,0.00012602,2]
[422208961,1778697047000,-1165.12,0.00012602,2]
[422208960,1778697047000,-1253.67,0.00012602,2]
[422208967,1778697047000,-1209.53,0.00012602,2]
[422208969,1778697047000,-955.12,0.00012602,2]
[422208971,1778697047000,-1229.37,0.00012602,2]
[422208970,1778697047000,-670.74,0.00012602,2]
[422208968,1778697047000,-500.0,0.00012602,2]
[422208957,1778697047000,-1002.78,0.00012602,2]
[422208974,1778697047000,-473.06789716,0.00012631,14]
[422208976,1778697047000,-154.0,0.000127,21]
[422208972,1778697047000,-2462.18,0.00012602,2]
[422208979,1778697047000,-154.0,0.000127,21]
[422208978,1778697047000,-154.0,0.000127,21]
[422208975,1778697047000,-8104.43342087,0.00012677,2]
[422208977,1778697047000,-154.0,0.000127,21]
[422208980,1778697047000,-154.0,0.000127,21]
[422208982,1778697047000,-154.0,0.000127,21]
[422208984,1778697047000,-154.0,0.000127,21]
[422208983,1778697047000,-154.0,0.000127,21]
[422208981,1778697047000,-154.0,0.000127,21]
[422208986,1778697047000,-473.06789716,0.00012705,14]
[422208922,1778697047000,-500.0,0.00012602,2]
[422208973,1778697047000,-1284.57,0.00012602,2]
[422208954,1778697047000,-653.62,0.00012602,2]
[422208985,1778697047000,-154.0,0.000127,21]
[422208955,1778697047000,-878.02,0.00012602,2]
[422208966,1778697047000,-1027.1,0.00012602,2]
[422208923,1778697047000,-940.17,0.00012602,2]
[422208926,1778697047000,-550.5,0.00012602,2]
[422208921,1778697047000,-500.0,0.00012602,2]
[422208925,1778697047000,-500.0,0.00012602,2]
[422208931,1778697047000,-1049.6,0.00012602,2]
[422208933,1778697047000,-531.39,0.00012602,2]
[422208939,1778697047000,-909.77,0.00012602,2]
[422208932,1778697047000,-500.0,0.00012602,2]
[422208938,1778697047000,-658.35,0.00012602,2]
[422208934,1778697047000,-500.0,0.00012602,2]
[422208937,1778697047000,-753.83,0.00012602,2]
[422208936,1778697047000,-755.81,0.00012602,2]
[422208943,1778697047000,-500.0,0.00012602,2]
[422208935,1778697047000,-868.66,0.00012602,2]
[422208942,1778697047000,-1735.03,0.00012602,2]
[422208965,1778697047000,-500.0,0.00012602,2]
[422208940,1778697047000,-2402.74,0.00012602,2]
[422208951,1778697047000,-1807.79,0.00012602,2]
[422208946,1778697047000,-838.87,0.00012602,2]
[422208947,1778697047000,-1101.26,0.00012602,2]
[422208952,1778697047000,-13657.84,0.00012602,2]
[422208949,1778697047000,-626.42,0.00012602,2]
[422208928,1778697047000,-693.17,0.00012602,2]
[422208953,1778697047000,-500.0,0.00012602,2]
[422208944,1778697047000,-1527.5,0.00012602,2]
[422208950,1778697047000,-516.82,0.00012602,2]
[422208941,1778697047000,-500.0,0.00012602,2]
[422208945,1778697047000,-766.24,0.00012602,2]
[422208948,1778697047000,-500.0,0.00012602,2]
[422209024,1778697048000,-500.0,0.00012876,2]
[422209031,1778697048000,-500.0,0.00012876,2]
[422209032,1778697048000,-500.0,0.00012876,2]
[422209029,1778697048000,-500.0,0.00012876,2]
[422209027,1778697048000,-562.04,0.00012876,2]
[422209022,1778697048000,-500.0,0.00012876,2]
[422209025,1778697048000,-500.0,0.00012876,2]
[422209021,1778697048000,-500.0,0.00012876,2]
[422209020,1778697048000,-500.0,0.00012876,2]
[422209023,1778697048000,-500.0,0.00012876,2]
[422209026,1778697048000,-500.0,0.00012876,2]
[422209030,1778697048000,-500.0,0.00012876,2]
[422209014,1778697048000,-177.498147,0.00012867,2]
[422209042,1778697048000,-500.0,0.00012876,2]
[422209034,1778697048000,-500.0,0.00012876,2]
[422209033,1778697048000,-500.0,0.00012876,2]
[422209044,1778697048000,-500.0,0.00012876,2]
[422209045,1778697048000,-940.17,0.00012876,2]
[422209046,1778697048000,-749.73,0.00012876,2]
[422209036,1778697048000,-572.11,0.00012876,2]
[422209035,1778697048000,-816.11,0.00012876,2]
[422209038,1778697048000,-500.0,0.00012876,2]
[422209040,1778697048000,-500.0,0.00012876,2]
[422209037,1778697048000,-500.0,0.00012876,2]
[422209039,1778697048000,-881.91,0.00012876,2]
[422209041,1778697048000,-500.0,0.00012876,2]
[422209015,1778697048000,-194.996294,0.00012867,2]
[422209028,1778697048000,-761.31,0.00012876,2]
[422209016,1778697048000,-1268.543,0.00012876,2]
[422208995,1778697048000,-1534.090333,0.0001274,2]
[422209011,1778697048000,-217.28422,0.00012867,2]
[422209043,1778697048000,-500.0,0.00012876,2]
[422208993,1778697048000,-209.382978,0.0001274,2]
[422208992,1778697048000,-2815.993436,0.0001274,2]
[422208987,1778697048000,-3411.13771517,0.00012712,2]
[422208990,1778697048000,-160.0,0.0001274,2]
[422208988,1778697048000,-586.37341586,0.00012729,2]
[422208991,1778697048000,-1487.996718,0.0001274,2]
[422208989,1778697048000,-198.0,0.0001273,2]
[422208994,1778697048000,-160.0,0.0001274,2]
[422209000,1778697048000,-3595.2373971,0.00012795,2]
[422209001,1778697048000,-567.1802,0.000128,2]
[422209006,1778697048000,-2774.770018,0.00012804,2]
[422209004,1778697048000,-2918.85948052,0.00012801,2]
[422209013,1778697048000,-160.0,0.00012867,2]
[422209003,1778697048000,-11594.150968,0.000128,2]
[422209005,1778697048000,-160.0,0.00012804,2]
[422208996,1778697048000,-2908.180666,0.0001274,2]
[422208998,1778697048000,-286.84034943,0.00012779,14]
[422208999,1778697048000,-473.06789716,0.00012779,14]
[422208997,1778697048000,-1052.0,0.00012776,2]
[422209008,1778697048000,-160.0,0.00012865,6]
[422209017,1778697048000,-500.0,0.00012876,2]
[422209018,1778697048000,-500.0,0.00012876,2]
[422209019,1778697048000,-271.21512451,0.00012876,2]
[422209009,1778697048000,-2918.85948054,0.00012867,2]
[422209007,1778697048000,-5389.540037,0.00012804,2]
[422209010,1778697048000,-160.0,0.00012867,2]
[422209012,1778697048000,-274.568441,0.00012867,2]
[422209002,1778697048000,-893.803,0.000128,2]
[422209047,1778697048000,-500.0,0.00012876,2]
[422209071,1778697048000,-626.42,0.00012876,2]
[422209049,1778697048000,-1395.13,0.00012876,2]
[422209084,1778697048000,-1979.83,0.00012876,2]
[422209082,1778697048000,-1253.67,0.00012876,2]
[422209077,1778697048000,-878.02,0.00012876,2]
[422209083,1778697048000,-1165.12,0.00012876,2]
[422209088,1778697048000,-1027.1,0.00012876,2]
[422209098,1778697048000,-823.0,0.00012893,2]
[422209099,1778697048000,-823.0,0.00012893,2]
[422209100,1778697048000,-823.0,0.00012893,2]
[422209087,1778697048000,-492.62559289,0.00012876,2]
[422209089,1778697048000,-1209.53,0.00012876,2]
[422209093,1778697048000,-1229.37,0.00012876,2]
[422209092,1778697048000,-670.74,0.00012876,2]
[422209050,1778697048000,-693.17,0.00012876,2]
[422209091,1778697048000,-955.12,0.00012876,2]
[422209096,1778697048000,-823.0,0.00012893,2]
[422209097,1778697048000,-823.0,0.00012893,2]
[422209094,1778697048000,-2462.18,0.00012876,2]
[422209090,1778697048000,-500.0,0.00012876,2]
[422209102,1778697048000,-823.0,0.00012893,2]
[422209104,1778697048000,-823.0,0.00012893,2]
[422209103,1778697048000,-823.0,0.00012893,2]
[422209105,1778697048000,-823.0,0.00012893,2]
[422209101,1778697048000,-823.0,0.00012893,2]
[422209107,1778697048000,-823.0,0.00012893,2]
[422209109,1778697048000,-823.0,0.00012893,2]
[422209108,1778697048000,-823.0,0.00012893,2]
[422209106,1778697048000,-823.0,0.00012893,2]
[422209079,1778697048000,-1002.78,0.00012876,2]
[422209076,1778697048000,-653.62,0.00012876,2]
[422209095,1778697048000,-1284.57,0.00012876,2]
[422209081,1778697048000,-761.17,0.00012876,2]
[422209080,1778697048000,-627.93,0.00012876,2]
[422209048,1778697048000,-550.5,0.00012876,2]
[422209056,1778697048000,-500.0,0.00012876,2]
[422209051,1778697048000,-2000.08,0.00012876,2]
[422209057,1778697048000,-868.66,0.00012876,2]
[422209059,1778697048000,-753.83,0.00012876,2]
[422209054,1778697048000,-500.0,0.00012876,2]
[422209053,1778697048000,-1049.6,0.00012876,2]
[422209052,1778697048000,-500.0,0.00012876,2]
[422209055,1778697048000,-531.39,0.00012876,2]
[422209061,1778697048000,-909.77,0.00012876,2]
[422209063,1778697048000,-500.0,0.00012876,2]
[422209072,1778697048000,-516.82,0.00012876,2]
[422209060,1778697048000,-658.35,0.00012876,2]
[422209058,1778697048000,-755.81,0.00012876,2]
[422209064,1778697048000,-1735.03,0.00012876,2]
[422209073,1778697048000,-1807.79,0.00012876,2]
[422209074,1778697048000,-13657.84,0.00012876,2]
[422209086,1778697048000,-956.47,0.00012876,2]
[422209085,1778697048000,-500.0,0.00012876,2]
[422209075,1778697048000,-500.0,0.00012876,2]
[422209070,1778697048000,-500.0,0.00012876,2]
[422209078,1778697048000,-2552.96,0.00012876,2]
[422209069,1778697048000,-1101.26,0.00012876,2]
[422209067,1778697048000,-766.24,0.00012876,2]
[422209065,1778697048000,-500.0,0.00012876,2]
[422209062,1778697048000,-2402.74,0.00012876,2]
[422209066,1778697048000,-1527.5,0.00012876,2]
[422209068,1778697048000,-838.87,0.00012876,2]
[422209127,1778697049000,-823.0,0.00012893,2]
[422209125,1778697049000,-823.0,0.00012893,2]
[422209128,1778697049000,-823.0,0.00012893,2]
[422209131,1778697049000,-823.0,0.00012893,2]
[422209130,1778697049000,-823.0,0.00012893,2]
[422209139,1778697049000,-823.0,0.00012893,2]
[422209141,1778697049000,-823.0,0.00012893,2]
[422209135,1778697049000,-823.0,0.00012893,2]
[422209137,1778697049000,-823.0,0.00012893,2]
[422209138,1778697049000,-823.0,0.00012893,2]
[422209132,1778697049000,-823.0,0.00012893,2]
[422209120,1778697049000,-823.0,0.00012893,2]
[422209134,1778697049000,-823.0,0.00012893,2]
[422209123,1778697049000,-823.0,0.00012893,2]
[422209117,1778697049000,-823.0,0.00012893,2]
[422209124,1778697049000,-823.0,0.00012893,2]
[422209121,1778697049000,-823.0,0.00012893,2]
[422209126,1778697049000,-823.0,0.00012893,2]
[422209129,1778697049000,-823.0,0.00012893,2]
[422209118,1778697049000,-823.0,0.00012893,2]
[422209119,1778697049000,-823.0,0.00012893,2]
[422209113,1778697049000,-823.0,0.00012893,2]
[422209114,1778697049000,-823.0,0.00012893,2]
[422209116,1778697049000,-823.0,0.00012893,2]
[422209110,1778697049000,-823.0,0.00012893,2]
[422209115,1778697049000,-823.0,0.00012893,2]
[422209112,1778697049000,-823.0,0.00012893,2]
[422209111,1778697049000,-823.0,0.00012893,2]
[422209122,1778697049000,-823.0,0.00012893,2]
[422209133,1778697049000,-823.0,0.00012893,2]
[422209145,1778697049000,-841.0,0.00012893,2]
[422209142,1778697049000,-823.0,0.00012893,2]
[422209136,1778697049000,-823.0,0.00012893,2]
[422209169,1778697049000,-5999.41189998,0.00013,2]
[422209170,1778697049000,-57.91672503,0.00013,2]
[422209171,1778697049000,-37577.44942366,0.00013,2]
[422209168,1778697049000,-161784.12937856,0.00013,2]
[422209167,1778697049000,-7959.4,0.00013,2]
[422209165,1778697049000,-5000.0,9.394e-05,2]
[422209166,1778697049000,-3158.14716759,0.00013,2]
[422209164,1778697049000,-3573.67861095,0.00013,2]
[422209163,1778697049000,-170566.96352205,0.00013,2]
[422209161,1778697049000,-1342.52310242,0.00012989,6]
[422209158,1778697049000,-586.37341586,0.00012983,7]
[422209160,1778697049000,-2059.41,0.00012329,2]
[422209156,1778697049000,-2918.85948054,0.00012942,2]
[422209162,1778697049000,-2766.98844509,0.0001299,2]
[422209157,1778697049000,-2351.0,0.00012945,2]
[422209140,1778697049000,-823.0,0.00012893,2]
[422209144,1778697049000,-823.0,0.00012893,2]
[422209143,1778697049000,-823.0,0.00012893,2]
[422209146,1778697049000,-20000.0,0.000129,2]
[422209148,1778697049000,-4385.81235411,0.000129,2]
[422209147,1778697049000,-3935.2,0.000129,2]
[422209153,1778697049000,-33.41933729,0.00012904,2]
[422209151,1778697049000,-4385.81235407,0.000129,2]
[422209149,1778697049000,-4385.81235407,0.000129,2]
[422209150,1778697049000,-4385.81235407,0.000129,2]
[422209159,1778697049000,-271.45820925,0.00012989,6]
[422209154,1778697049000,-200.0,0.0001291,2]
[422209155,1778697049000,-587.0,0.00012928,2]
[422209152,1778697049000,-2885.44014325,0.00012904,2]
[422209172,1778697092000,-5000.0,0.00010593,2]
[422209238,1778698234000,-150.83,9.484e-05,7]
[422209242,1778698234000,-300.0,9.898e-05,2]
[422209244,1778698234000,-1200.0,9.898e-05,2]
[422209246,1778698234000,-6310.22982376,9.899e-05,2]
[422209249,1778698234000,-564.1079001,9.899e-05,2]
[422209240,1778698234000,-5000.0,9.784e-05,2]
[422209433,1778698238000,-553.28968407,9.899e-05,2]
[422209455,1778698238000,-500.0,9.899e-05,2]
[422209445,1778698238000,-250.23784818,9.899e-05,2]
[422209443,1778698238000,-500.0,9.899e-05,2]
[422209441,1778698238000,-183.06634143,9.899e-05,2]
[422209439,1778698238000,-553.28968407,9.899e-05,2]